bitfinex/quotes_SOLUSD_20240814
["timestamp","ask_amount","ask_price","bid_price","bid_amount"]
[1723632752724,30.96,147.3,147.18,9.7222297]
[1723632752904,30.96,147.28,147.17,0.8320436]
[1723632753625,30.96,147.28,147.16,30.2920436]
[1723632753992,6.91589,147.27,147.16,30.2920436]
[1723632754396,6.91619,147.26,147.16,30.2920436]
[1723632754603,8.3088,147.25,147.16,30.2920436]
[1723632755214,8.3088,147.25,147.12,7.03863847]
[1723632755215,21.67689,147.24,147.14,30.96]
[1723632755425,21.5514,147.24,147.14,30.96]
[1723632756027,21.5514,147.24,147.16,30.96]
[1723632757025,21.5514,147.24,147.14,30.96]
[1723632757901,21.5514,147.24,147.15,0.12549]
[1723632758100,21.5514,147.24,147.15,0.25098]
[1723632758321,21.5514,147.24,147.15,45.37647]
[1723632758727,21.5514,147.24,147.16,31.08549]
[1723632758917,21.5514,147.24,147.17,45.0]
[1723632759311,21.5514,147.24,147.16,0.12549]
[1723632759814,21.5514,147.24,147.16,0.25098]
[1723632760122,21.5514,147.24,147.15,30.96]
[1723632760932,21.5514,147.24,147.17,30.96]
[1723632761503,21.5514,147.24,147.18,45.0]
[1723632762328,21.5514,147.24,147.17,30.96]
[1723632763343,21.5514,147.24,147.2,0.12549]
[1723632763510,21.5514,147.24,147.2,45.50196]
[1723632763907,21.5514,147.24,147.19,30.96]
[1723632764628,21.5514,147.24,147.2,45.12549]
[1723632764829,21.5514,147.24,147.2,45.0]
[1723632767813,8.3088,147.25,147.2,45.0]
[1723632768127,8.3088,147.25,147.2,57.41]
[1723632768915,8.3088,147.25,147.2,12.41]
[1723632769220,8.3088,147.25,147.18,12.78647]
[1723632769421,8.3088,147.25,147.11,28.8183]
[1723632769620,15.1,147.25,147.17,12.41]
[1723632769935,8.3088,147.25,147.16,31.04]
[1723632771142,15.0999,147.25,147.17,45.0]
[1723632771624,8.3088,147.25,147.17,45.0]
[1723632776021,8.3088,147.25,147.18,31.04]
[1723632777862,8.3088,147.25,147.19,45.25098]
[1723632781138,8.3088,147.25,147.2,0.25098]
[1723632781342,8.3088,147.25,147.21,0.12549]
[1723632781534,20.6051,147.27,147.22,31.04]
[1723632781737,20.6051,147.27,147.24,31.04]
[1723632782321,20.6051,147.27,147.25,0.12549]
[1723632782529,8.7097,147.29,147.25,45.25098]
[1723632783135,21.1397,147.31,147.27,0.12549]
[1723632783335,21.1397,147.31,147.27,45.25098]
[1723632783645,8.1348,147.33,147.28,31.16549]
[1723632783835,21.1397,147.35,147.3,31.04]
[1723632784039,21.1397,147.35,147.31,45.0]
[1723632785440,21.1397,147.35,147.32,0.12549]
[1723632785640,8.1348,147.37,147.32,0.50196]
[1723632785831,8.1348,147.37,147.32,31.54196]
[1723632786032,8.1348,147.37,147.33,45.0]
[1723632786232,21.2782,147.39,147.33,45.0]
[1723632786233,21.2782,147.39,147.34,0.25098]
[1723632787050,8.7332,147.41,147.35,0.25098]
[1723632787243,8.7332,147.41,147.37,0.12549]
[1723632790255,20.3143,147.43,147.37,0.25098]
[1723632790456,20.3143,147.43,147.38,0.12549]
[1723632790631,20.3143,147.43,147.38,0.25098]
[1723632791054,20.3143,147.43,147.37,45.12549]
[1723632791554,20.3143,147.43,147.38,0.12549]
[1723632792732,20.3143,147.43,147.38,0.25098]
[1723632794364,20.3143,147.43,147.39,0.12549]
[1723632795745,20.3143,147.43,147.39,0.25098]
[1723632796145,8.4808,147.45,147.39,0.25098]
[1723632796356,8.4808,147.45,147.4,0.12549]
[1723632796667,8.4808,147.45,147.4,0.25098]
[1723632798248,8.4808,147.45,147.39,45.12549]
[1723632801045,27.6428,147.45,147.39,45.0]
[1723632801365,20.8608,147.45,147.39,45.0]
[1723632803266,34.1651,147.47,147.4,0.71778388]
[1723632804866,12.38,147.43,147.33,33.37599865]
[1723632805072,6.7822,147.45,147.34,32.38]
[1723632805364,12.38,147.45,147.36,12.38]
[1723632805540,21.7851,147.47,147.36,12.38]
[1723632805743,20.0,147.46,147.36,12.38]
[1723632806047,12.38,147.45,147.36,12.38]
[1723632806255,12.38,147.45,147.37,45.25098]
[1723632807899,12.38,147.45,147.38,0.12549]
[1723632808072,12.38,147.45,147.38,0.25098]
[1723632808367,12.38,147.43,147.37,45.25098]
[1723632809369,12.38,147.45,147.37,45.25098]
[1723632814550,12.38,147.45,147.38,0.12549]
[1723632814777,12.38,147.45,147.38,0.25098]
[1723632817588,20.0,147.46,147.38,12.63098]
[1723632817896,8.1381,147.49,147.4,33.50639]
[1723632818053,12.38,147.5,147.41,45.90292695]
[1723632819180,20.0,147.49,147.41,45.90292695]
[1723632819773,20.0,147.49,147.41,45.37647]
[1723632820251,12.38,147.48,147.41,45.25098]
[1723632820459,19.1609,147.48,147.41,45.12549]
[1723632821577,19.1609,147.48,147.41,45.0]
[1723632821578,12.38,147.48,147.41,45.0]
[1723632821764,19.1607,147.48,147.41,45.0]
[1723632823079,12.38,147.46,147.37,20.3704]
[1723632823282,12.38,147.44,147.38,0.12549]
[1723632824072,12.38,147.46,147.38,0.12549]
[1723632824251,12.38,147.46,147.38,45.12549]
[1723632824456,12.38,147.44,147.38,0.25098]
[1723632825964,12.38,147.44,147.38,45.12549]
[1723632826178,12.38,147.44,147.38,45.0]
[1723632826771,12.38,147.44,147.37,7.9904]
[1723632828173,12.38,147.44,147.38,0.12549]
[1723632828370,12.38,147.44,147.38,45.12549]
[1723632830166,12.38,147.46,147.38,45.12549]
[1723632835306,19.1624,147.44,147.37,0.12549]
[1723632835504,12.38,147.44,147.36,21.97629]
[1723632835804,12.38,147.44,147.37,45.0]
[1723632838886,19.1624,147.44,147.36,21.8508]
[1723632839895,12.38,147.42,147.36,21.8508]
[1723632840105,12.38,147.42,147.34,8.6193]
[1723632840807,19.1633,147.42,147.32,33.3397]
[1723632840983,12.38,147.42,147.33,8.15221648]
[1723632841494,19.1634,147.42,147.33,8.15221648]
[1723632841678,12.38,147.42,147.34,45.0]
[1723632842179,12.38,147.42,147.33,45.12549]
[1723632842498,12.38,147.42,147.34,12.38]
[1723632842706,12.38,147.42,147.35,45.50196]
[1723632846405,12.38,147.42,147.35,45.0]
[1723632846779,12.38,147.42,147.33,0.12549]
[1723632847089,12.38,147.42,147.34,8.15145982]
[1723632847402,12.38,147.4,147.34,8.15145982]
[1723632847578,12.38,147.4,147.33,0.12549]
[1723632847778,19.1643,147.4,147.33,0.12549]
[1723632848395,12.38,147.4,147.3,12.38]
[1723632848698,12.38,147.4,147.32,0.12549]
[1723632848904,19.1642,147.4,147.32,0.12549]
[1723632849079,21.0382,147.39,147.32,0.25098]
[1723632850585,21.0382,147.39,147.31,45.25098]
[1723632850999,21.0382,147.39,147.32,0.12549]
[1723632851203,21.0382,147.39,147.32,0.25098]
[1723632852402,21.0382,147.39,147.31,45.25098]
[1723632852606,12.38,147.38,147.31,45.25098]
[1723632855304,12.38,147.36,147.27,12.38]
[1723632856503,8.4237,147.35,147.27,12.38]
[1723632856808,21.0247,147.34,147.24,35.18684491]
[1723632856995,33.4047,147.34,147.25,12.38]
[1723632857306,33.4047,147.34,147.26,8.15437772]
[1723632857494,33.4047,147.34,147.25,12.38]
[1723632857682,33.4047,147.34,147.26,8.15438931]
[1723632858385,33.4047,147.34,147.25,12.38]
[1723632858795,40.1918,147.34,147.25,12.38]
[1723632858997,40.1918,147.34,147.26,45.0]
[1723632859617,6.7876,147.33,147.26,45.0]
[1723632859909,12.38,147.32,147.21,27.07061501]
[1723632860080,12.38,147.32,147.22,12.38]
[1723632860283,12.38,147.32,147.24,12.38]
[1723632861425,19.1679,147.32,147.24,12.38]
[1723632861724,19.1679,147.32,147.22,12.38]
[1723632862014,6.7893,147.29,147.2,12.38]
[1723632862590,33.20649,147.3,147.2,12.38]
[1723632862805,20.0,147.29,147.2,12.38]
[1723632863205,26.7894,147.29,147.17,30.21562098]
[1723632863410,20.0,147.29,147.2,12.38]
[1723632863735,20.0,147.29,147.22,12.38]
[1723632864019,20.701,147.3,147.23,45.0]
[1723632866221,20.701,147.3,147.24,12.63098]
[1723632866520,20.701,147.3,147.26,12.38]
[1723632867688,20.701,147.3,147.24,12.75647]
[1723632867894,20.701,147.3,147.25,45.0]
[1723632870128,8.2982,147.31,147.26,12.50549]
[1723632870316,20.9345,147.34,147.28,12.38]
[1723632870699,20.9345,147.34,147.27,0.12549]
[1723632870920,20.9345,147.34,147.27,12.63098]
[1723632871119,20.9345,147.34,147.28,45.0]
[1723632871723,27.7216,147.34,147.25,12.38]
[1723632872030,6.788,147.32,147.24,12.50549]
[1723632872521,6.7876,147.33,147.24,12.50549]
[1723632872822,33.3145,147.34,147.24,12.50549]
[1723632873525,33.3145,147.34,147.25,45.12549]
[1723632873705,40.1018,147.34,147.25,45.12549]
[1723632873904,6.7874,147.33,147.25,45.12549]
[1723632874623,6.7879,147.32,147.24,12.38]
[1723632874832,12.38,147.32,147.24,12.38]
[1723632876125,12.38,147.32,147.23,0.12549]
[1723632876326,12.38,147.32,147.23,45.37647]
[1723632876547,8.0803,147.31,147.23,45.25098]
[1723632877131,8.0803,147.31,147.24,12.38]
[1723632877707,20.4796,147.3,147.23,45.0]
[1723632878631,20.4796,147.3,147.24,12.38]
[1723632879711,20.4796,147.3,147.25,45.0]
[1723632884128,20.4796,147.3,147.21,12.38]
[1723632884428,20.4796,147.3,147.22,20.0]
[1723632885007,8.0803,147.31,147.27,12.38]
[1723632885207,20.4681,147.34,147.29,12.38]
[1723632886733,20.4681,147.34,147.28,45.12549]
[1723632886918,27.2555,147.34,147.28,45.0]
[1723632887122,20.4681,147.34,147.27,12.38]
[1723632887716,20.4681,147.34,147.26,0.12549]
[1723632887920,20.4681,147.34,147.26,45.12549]
[1723632888528,20.4681,147.34,147.27,12.38]
[1723632891942,20.4681,147.34,147.25,12.38]
[1723632892143,32.8481,147.34,147.26,45.25098]
[1723632892335,32.8481,147.34,147.26,45.0]
[1723632892637,39.6352,147.34,147.26,45.0]
[1723632892845,12.38,147.32,147.23,12.38]
[1723632893037,12.38,147.32,147.24,20.0]
[1723632894037,8.1999,147.33,147.24,20.0]
[1723632894231,8.1999,147.33,147.25,45.0]
[1723632894434,8.1999,147.33,147.25,57.38]
[1723632895741,8.1999,147.33,147.26,0.25098]
[1723632896317,8.1999,147.33,147.25,57.38]
[1723632905640,12.38,147.32,147.25,45.0]
[1723632905846,19.7855,147.31,147.23,12.38]
[1723632906864,19.7855,147.31,147.21,8.23802413]
[1723632906865,20.9567,147.3,147.21,8.23802413]
[1723632907165,20.9567,147.3,147.18,14.39984808]
[1723632907166,21.80919,147.29,147.22,8.15766238]
[1723632907381,21.80919,147.29,147.19,12.38]
[1723632907548,21.80919,147.29,147.2,8.15819216]
[1723632908087,21.6837,147.29,147.21,12.38]
[1723632908252,21.6837,147.29,147.22,8.15795111]
[1723632909563,21.6837,147.29,147.21,12.38]
[1723632910449,21.6837,147.29,147.22,8.40902682]
[1723632910647,21.6837,147.29,147.23,45.0]
[1723632910849,21.6837,147.29,147.23,57.38]
[1723632912260,21.6837,147.29,147.25,12.38]
[1723632913358,21.6837,147.29,147.23,57.38]
[1723632914649,21.6837,147.29,147.24,8.15716351]
[1723632915355,21.6837,147.29,147.23,57.38]
[1723632917360,21.6837,147.29,147.18,6.20931501]
[1723632917552,34.0637,147.29,147.19,8.1582086]
[1723632917770,12.38,147.27,147.2,8.1582086]
[1723632917990,12.38,147.27,147.18,18.58931501]
[1723632918252,12.38,147.27,147.19,8.15896054]
[1723632919085,12.38,147.27,147.2,8.1591408]
[1723632919475,12.38,147.27,147.18,12.38]
[1723632919660,28.3128,147.28,147.2,12.38]
[1723632919861,28.3128,147.28,147.21,8.15914313]
[1723632920257,28.3128,147.28,147.2,12.38]
[1723632927170,28.3128,147.28,147.21,45.0]
[1723632928201,28.3128,147.28,147.22,12.50549]
[1723632928360,28.3128,147.28,147.24,12.38]
[1723632928567,28.3128,147.28,147.25,0.12549]
[1723632928795,28.3128,147.28,147.26,12.38]
[1723632929167,28.3128,147.28,147.24,12.38]
[1723632930389,28.3128,147.28,147.25,45.0]
[1723632930797,28.3128,147.28,147.26,0.12549]
[1723632931581,28.3128,147.28,147.25,45.0]
[1723632932191,28.3128,147.28,147.22,12.38]
[1723632932396,28.3128,147.28,147.23,45.12549]
[1723632932571,28.3128,147.28,147.23,45.0]
[1723632932895,28.3128,147.28,147.22,12.38]
[1723632933466,28.3128,147.28,147.23,45.0]
[1723632936893,28.3128,147.28,147.24,0.25098]
[1723632937399,28.3128,147.28,147.25,0.12549]
[1723632938692,28.3128,147.28,147.25,0.25098]
[1723632940100,28.3128,147.28,147.24,0.12549]
[1723632940304,28.3128,147.28,147.23,45.0]
[1723632942711,28.3128,147.28,147.24,0.50196]
[1723632943388,28.3128,147.28,147.24,12.88196]
[1723632943586,28.3128,147.28,147.25,45.0]
[1723632946293,28.3128,147.28,147.24,12.50549]
[1723632946603,28.3128,147.28,147.24,12.38]
[1723632948194,28.3128,147.28,147.18,7.01820435]
[1723632948398,28.3128,147.28,147.21,8.1581075]
[1723632948714,28.3128,147.28,147.22,8.1581075]
[1723632948885,28.3128,147.28,147.21,8.1581075]
[1723632949206,28.3128,147.28,147.22,8.15829672]
[1723632949404,28.3128,147.28,147.19,20.53829672]
[1723632949579,28.3128,147.28,147.2,8.15861794]
[1723632949979,12.38,147.27,147.2,8.15861794]
[1723632952620,12.38,147.27,147.19,12.38]
[1723632952907,28.3128,147.28,147.2,8.1589817]
[1723632954108,28.3128,147.28,147.19,12.38]
[1723632954311,28.3128,147.28,147.2,8.15897969]
[1723632955795,20.5627,147.27,147.17,0.12549]
[1723632956110,8.2919,147.26,147.19,12.38]
[1723632959997,20.5937,147.25,147.19,12.38]
[1723632964019,20.5937,147.25,147.21,12.38]
[1723632964227,20.5937,147.25,147.23,12.38]
[1723632965827,20.5937,147.25,147.24,45.0]
[1723632966821,21.5576,147.29,147.24,45.0]
[1723632967700,21.5576,147.29,147.25,12.38]
[1723632968822,21.5576,147.29,147.27,12.38]
[1723632969226,21.5576,147.29,147.26,45.0]
[1723632969926,21.5576,147.29,147.24,12.75647]
[1723632970138,21.5576,147.29,147.25,45.0]
[1723632972303,21.5576,147.29,147.22,12.38]
[1723632973224,21.5576,147.29,147.24,12.38]
[1723632973601,21.5576,147.29,147.22,12.38]
[1723632973933,21.5576,147.29,147.23,45.0]
[1723632989550,21.5576,147.29,147.21,0.37647]
[1723632989727,21.5576,147.29,147.21,12.75647]
[1723632989924,21.5576,147.29,147.22,45.0]
[1723632990141,21.5576,147.29,147.22,53.15769327]
[1723632990956,21.5576,147.29,147.22,45.0]
[1723632992545,21.5576,147.29,147.21,0.12549]
[1723632992722,21.5576,147.29,147.2,12.38]
[1723632992928,21.5576,147.29,147.21,8.15851348]
[1723632994546,21.5576,147.29,147.2,12.38]
[1723632994752,21.5576,147.29,147.21,53.15836211]
[1723632994933,21.5576,147.29,147.21,45.0]
[1723632996153,33.9376,147.29,147.2,12.38]
[1723632997450,33.9376,147.29,147.21,8.15859303]
[1723632997759,33.9376,147.29,147.2,12.38]
[1723632999752,21.5576,147.29,147.2,12.38]
[1723632999954,21.5576,147.29,147.21,8.15842601]
[1723633001055,21.5576,147.29,147.22,57.38]
[1723633001446,21.5576,147.29,147.22,12.38]
[1723633007666,21.5576,147.29,147.19,0.37647]
[1723633007865,21.5576,147.29,147.2,20.66384833]
[1723633008158,21.5576,147.29,147.21,53.15835833]
[1723633008376,21.5576,147.29,147.2,12.38]
[1723633008377,8.0832,147.27,147.22,8.15835833]
[1723633008538,21.4141,147.26,147.2,12.38]
[1723633008733,21.4141,147.26,147.21,8.15901544]
[1723633008957,19.9954,147.3,147.22,12.38]
[1723633009155,20.0,147.29,147.22,12.38]
[1723633009354,19.9954,147.3,147.22,12.38]
[1723633009964,19.9954,147.3,147.23,8.15804444]
[1723633014171,19.9954,147.3,147.22,12.38]
[1723633014377,19.9954,147.3,147.23,8.15804529]
[1723633016279,30.5338,147.29,147.23,8.15804529]
[1723633016461,22.02849,147.28,147.2,12.38]
[1723633016665,34.40849,147.28,147.21,8.15840075]
[1723633018066,34.40849,147.28,147.2,12.38]
[1723633018268,34.40849,147.28,147.21,8.15906806]
[1723633018674,22.02849,147.28,147.21,8.15906806]
[1723633020262,21.903,147.28,147.22,12.38]
[1723633020456,21.903,147.28,147.24,12.38]
[1723633024290,21.903,147.28,147.25,45.0]
[1723633025369,21.903,147.28,147.26,12.38]
[1723633026469,28.3751,147.32,147.26,12.38]
[1723633026668,28.3751,147.36,147.3,12.38]
[1723633026872,28.3751,147.36,147.32,12.38]
[1723633027490,28.3751,147.36,147.34,12.38]
[1723633027795,28.3751,147.36,147.32,10.19125995]
[1723633028116,28.3751,147.36,147.28,2.73838259]
[1723633028117,28.3751,147.36,147.28,0.12549]
[1723633028263,28.3751,147.36,147.29,30.72650251]
[1723633028464,28.3751,147.36,147.29,10.19257555]
[1723633028667,12.38,147.34,147.28,10.19257555]
[1723633028884,20.6872,147.32,147.27,10.19257555]
[1723633029084,20.6872,147.32,147.26,10.19257555]
[1723633029276,12.38,147.3,147.24,10.19257555]
[1723633029887,12.38,147.3,147.23,10.19257555]
[1723633030591,0.12549,147.3,147.23,10.19257555]
[1723633030798,12.63098,147.3,147.23,10.19257555]
[1723633031194,12.63098,147.3,147.21,12.38]
[1723633031498,29.5658,147.29,147.23,10.19713228]
[1723633032199,19.9245,147.27,147.22,10.19713228]
[1723633032515,8.6898,147.26,147.2,10.19713228]
[1723633033008,8.6898,147.26,147.15,8.90280525]
[1723633033009,33.8635,147.24,147.19,10.19713228]
[1723633033303,0.12549,147.23,147.17,10.19713228]
[1723633034084,20.6544,147.21,147.17,10.19713228]
[1723633034276,20.6544,147.21,147.16,10.19713228]
[1723633034811,0.12549,147.2,147.15,10.19713228]
[1723633035116,0.25098,147.2,147.15,10.19713228]
[1723633035678,45.25098,147.2,147.15,10.2016885]
[1723633035905,45.25098,147.2,147.13,10.2016885]
[1723633036091,45.25098,147.2,147.13,10.20295116]
[1723633036288,20.77989,147.21,147.17,31.06]
[1723633036289,20.6544,147.21,147.17,31.06]
[1723633036612,20.6544,147.21,147.19,31.06]
[1723633037105,20.6544,147.21,147.18,8.81580191]
[1723633037312,20.6544,147.21,147.18,39.87580191]
[1723633037987,20.6544,147.21,147.18,31.06]
[1723633041009,20.6544,147.21,147.16,31.06]
[1723633041231,20.6544,147.21,147.18,31.06]
[1723633041521,20.6544,147.21,147.16,31.06]
[1723633049218,20.6544,147.21,147.14,39.87580191]
[1723633049920,20.6544,147.21,147.12,31.18549]
[1723633050212,0.12549,147.2,147.11,7.09571062]
[1723633050426,20.6544,147.21,147.12,45.0]
[1723633050640,51.7144,147.21,147.12,45.0]
[1723633050919,20.6544,147.21,147.12,45.0]
[1723633052030,65.37647,147.2,147.11,7.09571062]
[1723633052343,28.0348,147.19,147.11,7.09571062]
[1723633052515,0.12549,147.18,147.11,7.09571062]
[1723633052716,28.0348,147.19,147.11,7.09571062]
[1723633053411,28.0348,147.19,147.11,38.15571062]
[1723633054209,28.0348,147.19,147.13,31.06]
[1723633055334,28.0348,147.19,147.11,46.97151253]
[1723633055516,28.0348,147.19,147.11,38.15571062]
[1723633055724,28.0348,147.19,147.11,7.09571062]
[1723633056252,28.0348,147.19,147.11,38.15571062]
[1723633056415,29.399,147.18,147.11,7.09571062]
[1723633056617,7.04588,147.17,147.11,7.09571062]
[1723633056828,20.25098,147.17,147.11,7.09571062]
[1723633057144,0.25098,147.16,147.11,7.09571062]
[1723633057347,8.2289,147.14,147.11,7.09571062]
[1723633057642,8.2289,147.14,147.11,38.15571062]
[1723633061855,8.2289,147.14,147.12,12.43]
[1723633062431,20.3736,147.15,147.12,12.43]
[1723633062637,20.3736,147.15,147.14,12.43]
[1723633063196,20.3736,147.15,147.12,12.43]
[1723633065238,20.3736,147.15,147.11,7.09571062]
[1723633066265,8.0096,147.14,147.11,7.09571062]
[1723633066646,8.0096,147.14,147.13,6.7966]
[1723633069371,8.0096,147.14,147.07,12.43]
[1723633069660,8.0096,147.14,147.03,10.20474491]
[1723633069888,8.0096,147.14,147.08,12.43]
[1723633070298,8.0096,147.14,147.1,12.43]
[1723633071363,8.0096,147.14,147.12,12.43]
[1723633072166,8.0096,147.14,147.09,12.43]
[1723633074002,8.0096,147.14,147.06,31.08]
[1723633074199,8.0096,147.14,147.07,65.37647]
[1723633074684,8.0096,147.14,147.07,20.12549]
[1723633074887,8.0096,147.14,147.07,20.0]
[1723633075093,8.0096,147.14,147.06,20.0]
[1723633075294,8.0096,147.14,147.06,30.2058366]
[1723633076801,8.0096,147.14,147.07,45.37647]
[1723633077480,8.0096,147.14,147.07,55.58319838]
[1723633077905,8.0096,147.14,147.07,55.58316011]
[1723633078583,8.0096,147.14,147.08,0.25098]
[1723633079008,8.0096,147.14,147.08,0.12549]
[1723633080691,8.0096,147.14,147.08,0.25098]
[1723633080993,8.0096,147.14,147.09,0.25098]
[1723633081202,8.0096,147.14,147.1,0.12549]
[1723633081397,8.0096,147.14,147.09,45.25098]
[1723633081617,8.0096,147.14,147.1,0.12549]
[1723633081816,8.0096,147.14,147.1,0.25098]
[1723633082114,8.0096,147.14,147.09,55.45767011]
[1723633082615,8.0096,147.14,147.09,45.25098]
[1723633084401,8.0096,147.14,147.09,45.0]
[1723633086202,8.0096,147.14,147.08,45.0]
[1723633086606,8.0096,147.14,147.06,10.2059236]
[1723633086813,8.0096,147.14,147.07,45.0]
[1723633087687,31.08,147.13,147.06,10.20764553]
[1723633088611,8.0096,147.14,147.06,10.20764553]
[1723633088916,8.0096,147.14,147.04,0.12549]
[1723633089218,8.0096,147.14,147.06,10.20765851]
[1723633089629,8.0096,147.14,147.05,10.20765851]
[1723633089801,8.0096,147.14,147.06,45.0]
[1723633090422,31.08,147.13,147.06,45.0]
[1723633091022,31.08,147.13,147.05,10.20765851]
[1723633091225,21.2661,147.12,147.05,10.20852957]
[1723633091799,39.7057,147.11,147.04,10.20852957]
[1723633092105,31.08,147.09,147.04,10.20852957]
[1723633092305,39.345,147.07,147.02,11.04057317]
[1723633092500,39.345,147.07,147.02,0.8320436]
[1723633093440,8.265,147.07,147.02,0.8320436]
[1723633094114,39.345,147.07,147.02,0.8320436]
[1723633095749,8.265,147.07,147.02,0.8320436]
[1723633096231,8.265,147.07,147.02,20.8320436]
[1723633096529,8.265,147.07,147.03,45.12549]
[1723633096831,8.265,147.07,147.03,45.0]
[1723633097029,8.265,147.07,147.02,45.8320436]
[1723633097409,8.265,147.07,147.02,0.8320436]
[1723633097610,8.265,147.07,147.02,20.8320436]
[1723633098132,8.265,147.07,147.02,0.8320436]
[1723633099021,21.8507,147.05,147.02,0.8320436]
[1723633099438,8.3907,147.04,146.98,10.21143678]
[1723633099949,8.3907,147.04,146.97,10.21143678]
[1723633101445,8.3907,147.04,146.99,0.12549]
[1723633101611,8.3907,147.04,146.99,0.25098]
[1723633101814,8.3907,147.04,146.99,0.12549]
[1723633102436,8.3907,147.04,146.99,0.25098]
[1723633103445,21.8507,147.05,147.01,0.12549]
[1723633103635,21.8507,147.05,147.01,65.50196]
[1723633103812,21.8507,147.05,147.01,45.37647]
[1723633104135,21.8507,147.05,147.01,0.37647]
[1723633104339,21.8507,147.05,147.01,20.37647]
[1723633104542,21.8507,147.05,147.01,20.12549]
[1723633105439,21.8507,147.05,147.03,0.12549]
[1723633107047,21.8507,147.05,147.01,20.0]
[1723633107239,21.8507,147.05,147.02,0.12549]
[1723633107424,21.8507,147.05,147.0,20.25098]
[1723633107616,21.8507,147.05,146.98,10.21028832]
[1723633108273,21.8507,147.05,146.99,20.0]
[1723633108612,21.8507,147.05,146.99,30.21120941]
[1723633108938,21.8507,147.05,147.0,0.12549]
[1723633109237,21.8507,147.05,147.0,0.50196]
[1723633109443,21.8507,147.05,147.0,45.50196]
[1723633109810,21.8507,147.05,147.0,76.58196]
[1723633110046,8.7223,147.08,147.02,0.12549]
[1723633110212,8.7223,147.08,147.02,45.50196]
[1723633110425,8.7223,147.08,147.02,45.37647]
[1723633110631,8.7223,147.08,147.01,20.0]
[1723633110839,39.8023,147.08,147.01,0.12549]
[1723633111025,37.8802,147.06,146.98,10.21073508]
[1723633111336,37.8802,147.06,146.97,10.21073508]
[1723633111337,8.6063,147.05,146.97,10.21073508]
[1723633111919,20.26939,147.04,146.96,10.21073508]
[1723633112115,20.1439,147.04,146.96,10.21073508]
[1723633112343,20.1439,147.04,146.97,10.21073508]
[1723633112744,20.1439,147.04,146.97,10.21221007]
[1723633113239,20.1439,147.04,146.97,10.21223123]
[1723633113433,20.1439,147.04,146.99,0.12549]
[1723633113744,20.1439,147.04,146.99,0.25098]
[1723633116621,20.1439,147.04,146.99,0.12549]
[1723633116930,20.1439,147.04,146.97,10.21274853]
[1723633117135,51.2239,147.04,146.95,10.21274853]
[1723633117345,51.2239,147.04,146.96,20.0]
[1723633118647,20.1439,147.04,146.97,0.12549]
[1723633118837,20.1439,147.04,146.96,20.0]
[1723633118838,51.2239,147.04,146.96,20.0]
[1723633119152,51.2239,147.04,146.95,10.33934213]
[1723633122034,20.1439,147.04,146.95,10.33934213]
[1723633123133,8.07869,147.03,146.95,10.21385213]
[1723633123333,21.6072,147.02,146.94,30.21385213]
[1723633124468,21.6072,147.02,146.95,0.12549]
[1723633124658,21.6072,147.02,146.95,45.12549]
[1723633125654,21.6072,147.02,146.95,55.34000866]
[1723633126336,21.6072,147.02,146.95,55.21451866]
[1723633126747,21.6072,147.02,146.96,0.12549]
[1723633126957,21.6072,147.02,146.95,10.21451866]